fUSD/lending_fUSD_20240826
["ID","MTS","AMOUNT","RATE_DAILY","PERIOD"]
[336135002,1724707832181,-150.6,0.0001079,2]
[336135003,1724707832190,-150.6,0.0001079,2]
[336135004,1724707832200,-150.6,0.0001079,2]
[336135005,1724707832210,-150.6,0.0001079,2]
[336135006,1724707832221,-150.6,0.0001079,2]
[336135007,1724707832230,-150.6,0.0001079,2]
[336135008,1724707832240,-150.6,0.0001079,2]
[336135009,1724707832249,-150.6,0.0001079,2]
[336135010,1724707832259,-150.6,0.0001079,2]
[336135011,1724707832268,-150.6,0.0001079,2]
[336135012,1724707832277,-150.6,0.0001079,2]
[336135013,1724707832287,-150.6,0.0001079,2]
[336135014,1724707832296,-150.6,0.0001079,2]
[336135015,1724707832305,-150.6,0.0001079,2]
[336135016,1724707832315,-150.6,0.0001079,2]
[336135017,1724707832324,-150.6,0.0001079,2]
[336135018,1724707832334,-150.6,0.0001079,2]
[336135019,1724707832344,-150.6,0.0001079,2]
[336135020,1724707832353,-150.6,0.0001079,2]
[336135021,1724707832362,-150.6,0.0001079,2]
[336135022,1724707832371,-150.6,0.0001079,2]
[336135023,1724707832380,-150.6,0.0001079,2]
[336135024,1724707832390,-150.6,0.0001079,2]
[336135025,1724707832399,-150.6,0.0001079,2]
[336135026,1724707832408,-150.6,0.0001079,2]
[336135027,1724707832417,-150.6,0.0001079,2]
[336135028,1724707832427,-150.6,0.0001079,2]
[336135029,1724707832437,-150.6,0.0001079,2]
[336135030,1724707832446,-150.6,0.0001079,2]
[336135031,1724707832455,-150.6,0.0001079,2]
[336135032,1724707832464,-150.6,0.0001079,2]
[336135033,1724707832474,-150.6,0.0001079,2]
[336135034,1724707832484,-150.6,0.0001079,2]
[336135035,1724707832493,-150.6,0.0001079,2]
[336135036,1724707832503,-387.7551198,0.00010797,2]
[336135037,1724707832512,-65816.06733209,0.00010799,2]
[336135038,1724707832525,-3149.336492,0.00010799,2]
[336135039,1724707832540,-322.91174239,0.00010799,2]
[336135040,1724707832551,-3153.15,0.00010799,2]
[336135041,1724707832566,-577.77629685,0.00010799,2]
[336135042,1724707832577,-2005.57355483,0.00010799,2]
[336135043,1724707832589,-3160.1788295,0.00010799,2]
[336135044,1724707832600,-44433.57140836,0.00010799,2]
[336135045,1724707832611,-14391.01,0.00010799,2]
[336135050,1724707837719,-415.74,0.00010789,2]
[336135051,1724707837729,-415.74,0.00010789,2]
[336135052,1724707837738,-11.79,0.00010789,2]
[336135053,1724707837778,-403.95,0.00010789,2]
[336135054,1724707837787,-249.65831752,0.00010789,2]
[336135055,1724707837837,-166.08168248,0.00010789,2]
[336135056,1724707837847,-415.74,0.00010789,2]
[336135057,1724707837857,-415.74,0.00010789,2]
[336135058,1724707837866,-415.74,0.00010789,2]
[336135059,1724707837876,-415.74,0.00010789,2]
[336135060,1724707837885,-415.74,0.00010789,2]
[336135061,1724707837895,-415.74,0.00010789,2]
[336135062,1724707837905,-415.74,0.00010789,2]
[336135063,1724707837914,-415.74,0.00010789,2]
[336135064,1724707837923,-20531.89929821,0.00010799,2]
[336135065,1724707837951,-415.74,0.00010789,2]
[336135066,1724707837961,-351.60363436,0.00010799,2]
[336135067,1724707837973,-5000.0,0.00010799,2]
[336135068,1724707837985,-337.32560604,0.00010799,2]
[336135182,1724707839650,-293.04699676,0.00010789,2]
[336135184,1724707839662,-122.69300324,0.00010789,2]
[336135187,1724707839672,-408.54930066,0.00010789,2]
[336135197,1724707839762,-7.19069934,0.00010789,2]
[336135199,1724707839772,-415.74,0.00010789,2]
[336135201,1724707839781,-415.74,0.00010789,2]
[336135203,1724707839790,-415.74,0.00010789,2]
[336135205,1724707839800,-415.74,0.00010789,2]
[336135206,1724707839809,-415.74,0.00010789,2]
[336135208,1724707839818,-415.74,0.00010789,2]
[336135210,1724707839827,-3247.36930066,0.00010799,2]
[336135212,1724707839838,-2923.62999489,0.00010799,2]
[336135214,1724707839849,-12414.52112455,0.00010799,2]
[336135216,1724707839860,-687.06,0.00010799,2]
[336135218,1724707839871,-1558.49740916,0.00010799,2]
[336135220,1724707839882,-9471.22129398,0.00010799,2]
[336135223,1724707839902,-1213.13686397,0.00010799,2]
[336135225,1724707839913,-354.33584849,0.00010799,2]
[336135227,1724707839924,-2028.66020606,0.00010799,2]
[336135237,1724707840013,-251.65883882,0.00010799,2]
[336135240,1724707840033,-415.74,0.00010789,2]
[336135242,1724707840042,-86.75888056,0.00010799,2]
[336135244,1724707840053,-1035.0,0.00010799,2]
[336135247,1724707840064,-2556.83930075,0.00010799,2]
[336135493,1724707842751,-415.74,0.00010789,2]
[336135495,1724707842760,-415.74,0.00010789,2]
[336135497,1724707842770,-415.74,0.00010789,2]
[336135499,1724707842779,-415.74,0.00010789,2]
[336135501,1724707842788,-415.74,0.00010789,2]
[336135503,1724707842798,-415.74,0.00010789,2]
[336135505,1724707842807,-415.74,0.00010789,2]
[336135507,1724707842817,-415.74,0.00010789,2]
[336135526,1724707842997,-415.74,0.00010789,2]
[336135528,1724707843007,-415.74,0.00010789,2]
[336135530,1724707843016,-415.74,0.00010789,2]
[336135532,1724707843026,-415.74,0.00010789,2]
[336135534,1724707843036,-22740.58753324,0.00010799,2]
[336135537,1724707843056,-475.08271232,0.00010799,2]
[336135539,1724707843070,-995.95145591,0.00010799,2]
[336135542,1724707843083,-11962.4,0.00010799,2]
[336135545,1724707843111,-301.25385499,0.00010799,2]
[336135547,1724707843122,-694.512008,0.00010799,2]
[336135550,1724707843140,-1260.0,0.00010799,2]
[336135553,1724707843160,-415.74,0.00010789,2]
[336135555,1724707843169,-30.51,0.00010799,2]
[336135557,1724707843182,-1995.27198633,0.00010799,2]
[336135560,1724707843201,-1016.18242901,0.00010799,2]
[336135709,1724707845625,-415.74,0.00010789,2]
[336135710,1724707845634,-331.66697802,0.00010789,2]
[336135711,1724707845645,-84.07302198,0.00010789,2]
[336135712,1724707845654,-415.74,0.00010789,2]
[336135713,1724707845663,-5.32697802,0.00010789,2]
[336135714,1724707845674,-292.064,0.00010789,2]
[336135715,1724707845685,-118.34902198,0.00010789,2]
[336135716,1724707845694,-168.33767471,0.00010789,2]
[336135717,1724707845705,-247.40232529,0.00010789,2]
[336135718,1724707845715,-415.74,0.0001079,2]
[336135719,1724707845724,-415.74,0.0001079,2]
[336135720,1724707845733,-415.74,0.0001079,2]
[336135721,1724707845742,-415.74,0.0001079,2]
[336135722,1724707845752,-415.74,0.0001079,2]
[336135723,1724707845762,-415.74,0.0001079,2]
[336135724,1724707845772,-415.74,0.0001079,2]
[336135725,1724707845783,-542.43386333,0.00010799,2]
[336135726,1724707845800,-1734.84626364,0.00010799,2]
[336135727,1724707845812,-1072.71037733,0.00010799,2]
[336135728,1724707845823,-912.34615092,0.00010799,2]
[336135729,1724707845834,-2926.24615033,0.00010799,2]
[336135730,1724707845845,-849.13398569,0.00010799,2]
[336135731,1724707845856,-1587.8490149,0.00010799,2]
[336135732,1724707845867,-668.45000001,0.00010799,2]
[336135733,1724707845878,-632.6531488,0.00010799,2]
[336135734,1724707845889,-1834.12245667,0.00010799,2]
[336135735,1724707845911,-415.74,0.0001079,2]
[336135736,1724707845921,-440.46926424,0.00010799,2]
[336135737,1724707845933,-458.79255675,0.00010799,2]
[336135738,1724707845944,-945.0,0.00010799,2]
[336135739,1724707845957,-459.40001674,0.00010799,2]
[336135740,1724707845966,-1179.35845671,0.00010799,2]
[336135742,1724707845978,-2375.79865919,0.00010799,2]
[336135744,1724707845988,-73.19164151,0.000108,2]
[336135746,1724707845999,-779.46259794,0.000108,2]
[336135748,1724707846010,-450.0,0.000108,2]
[336135750,1724707846021,-17412.24119828,0.000108,2]
[336135752,1724707846032,-719.95798759,0.000108,2]
[336136522,1724707859940,500.0,0.00010009,2]
[336136523,1724707912483,433.18,9.957e-05,2]
[336136524,1724707912583,162.68,9.957e-05,2]
[336136527,1724707981281,416.77,8.219e-05,2]
[336136528,1724707982755,23900.0,9.964e-05,2]
[336136529,1724708013712,171.53,9.951e-05,2]
[336136530,1724708018681,250.0,9.951e-05,2]
[336136531,1724708112779,495.9,9.949e-05,2]
[336136539,1724708293621,155.0,0.00010009,2]
[336136540,1724708503671,178.66,9.926e-05,2]
[336136541,1724708503762,408.67,8.219e-05,2]
[336136542,1724708527278,250.0,9.91e-05,2]
[336136547,1724708544038,171.53,9.925e-05,2]
[336136553,1724708638495,603.28,9.919e-05,2]
[336136556,1724708734726,19011.97,9.894e-05,2]
[336136557,1724708736218,216.59,9.894e-05,2]
[336136563,1724708863205,1050.0,0.0001,2]
[336136569,1724708913893,543.82124102,0.00010009,2]
[336136598,1724708983155,1723.91419305,0.00010009,2]
[336136602,1724709016663,200.0,9.959e-05,2]
[336136614,1724709031846,-219.15407154,0.00010026,2]
[336136615,1724709031856,-155.0,0.00010471,2]
[336136616,1724709031865,-105.00592846,0.00010471,2]
[336136617,1724709031877,-49.99407154,0.00010471,2]
[336136618,1724709031886,-297.30792619,0.00010472,2]
[336136619,1724709031897,-111.36207381,0.00010472,2]
[336136620,1724709031907,-155.22334272,0.00010505,2]
[336136621,1724709031916,-34.70578347,0.00010505,2]
[336136622,1724709031927,-120.64148859,0.00010505,2]
[336136623,1724709031936,-357.18774068,0.00010505,2]
[336136624,1724709031945,-380.75615152,0.00010505,2]
[336136625,1724709031955,-155.24616328,0.00010505,2]
[336136626,1724709031964,-5038.73658722,0.00010505,2]
[336136639,1724709037837,-284.43090338,0.00010471,2]
[336136640,1724709037846,-600.60859268,0.00010471,2]
[336136641,1724709037856,-155.0,0.00010505,2]
[336136642,1724709037866,-429.08409281,0.00010505,2]
[336136643,1724709037875,-203.26467389,0.00010566,2]
[336136644,1724709037884,-159.60847032,0.00010566,2]
[336136645,1724709037894,-155.0,0.00010566,2]
[336136646,1724709037903,-310.0,0.00010566,2]
[336136647,1724709037912,-1725.0,0.00010566,2]
[336136648,1724709037922,-150.0,0.00010685,2]
[336136649,1724709037932,-685.24444,0.0001069,2]
[336136650,1724709037942,-685.24444,0.0001069,2]
[336136651,1724709037951,-685.24444,0.0001069,2]
[336136652,1724709037960,-228.41481,0.0001069,2]
[336136653,1724709037969,-166.3,0.0001069,2]
[336136654,1724709037978,-150.0,0.00010699,2]
[336136655,1724709037987,-32198.2205,0.000107,2]
[336136656,1724709037996,-306.57499997,0.000107,2]
[336136657,1724709038005,-142.75963695,0.000107,2]
[336136658,1724709038016,-7357.24036305,0.000107,2]
[336136659,1724709038026,-228.41481,0.0001073,2]
[336136660,1724709038035,-228.41482,0.0001077,2]
[336136661,1724709038044,-166.3,0.0001078,2]
[336136662,1724709038053,-166.3,0.0001078,2]
[336136663,1724709038062,-2620.86417445,0.00010787,8]
[336136664,1724709038071,-150.75,0.0001079,2]
[336136665,1724709038080,-150.75,0.0001079,2]
[336136666,1724709038089,-150.75,0.0001079,2]
[336136667,1724709038098,-150.75,0.0001079,2]
[336136668,1724709038107,-150.75,0.0001079,2]
[336136669,1724709038116,-150.75,0.0001079,2]
[336136670,1724709038125,-150.75,0.0001079,2]
[336136672,1724709038134,-150.75,0.0001079,2]
[336136674,1724709038144,-150.75,0.0001079,2]
[336136676,1724709038153,-150.75,0.0001079,2]
[336136677,1724709038162,-150.75,0.0001079,2]
[336136679,1724709038171,-150.75,0.0001079,2]
[336136681,1724709038180,-150.75,0.0001079,2]
[336136683,1724709038189,-150.75,0.0001079,2]
[336136685,1724709038198,-150.75,0.0001079,2]
[336136687,1724709038207,-150.75,0.0001079,2]
[336136707,1724709038217,-150.75,0.0001079,2]
[336136710,1724709038410,-150.75,0.0001079,2]
[336136712,1724709038420,-150.75,0.0001079,2]
[336136714,1724709038429,-150.75,0.0001079,2]
[336136716,1724709038438,-6852.82363776,0.00010797,2]
[336136718,1724709038447,-151.96,0.00010799,2]
[336136720,1724709038456,-519483.20154238,0.000108,2]
[336136722,1724709038473,-166.3,0.00010787,2]
[336136724,1724709038482,-71865.03125911,0.000108,2]
[336136726,1724709038492,-64084.72565715,0.000108,2]
[336136728,1724709038503,-6612.25158562,0.000108,2]
[336136730,1724709038514,-85897.27518784,0.000108,2]
[336136732,1724709038524,-638.24848553,0.000108,2]
[336136887,1724709040043,-166.3,0.00010787,2]
[336136889,1724709040053,-166.3,0.00010787,2]
[336136891,1724709040062,-166.3,0.0001079,2]
[336136893,1724709040071,-166.3,0.0001079,2]
[336136895,1724709040080,-166.3,0.0001079,2]
[336136897,1724709040088,-152.28113628,0.0001079,2]
[336136899,1724709040100,-14.01886372,0.0001079,2]
[336136901,1724709040109,-166.3,0.0001079,2]
[336136903,1724709040118,-580.00714816,0.000108,2]
[336136905,1724709040129,-550.1564575,0.000108,2]
[336136907,1724709040141,-12921.63839813,0.000108,2]
[336136909,1724709040152,-600.0,0.000108,2]
[336136912,1724709040167,-372.50946649,0.000108,2]
[336136920,1724709040228,-1224.96970469,0.000108,2]
[336136927,1724709040288,-5029.4305011,0.000108,2]
[336137191,1724709042861,-166.3,0.0001079,2]
[336137193,1724709042870,-166.3,0.0001079,2]
[336137195,1724709042880,-168.79293075,0.000108,2]
[336137197,1724709042891,-457.46955249,0.000108,2]
[336137199,1724709042902,-6950.22205377,0.000108,2]
[336137202,1724709042920,-451.22072221,0.000108,2]
[336137204,1724709042931,-524.26,0.000108,2]
[336137210,1724709042985,-166.3,0.0001079,2]
[336137212,1724709042994,-106634.99502917,0.000108,2]
[336137215,1724709043005,-253.88923684,0.000108,2]
[336137220,1724709043048,-17268.42652662,0.000108,2]
[336137222,1724709043059,-6802.33893354,0.000108,2]
[336137228,1724709043106,-68768.91412927,0.000108,2]
[336137279,1724709043458,250.0,9.976e-05,2]
[336137515,1724709045858,-338.90646558,0.000107,2]
[336137517,1724709045869,-166.3,0.0001079,2]
[336137519,1724709045878,-166.3,0.0001079,2]
[336137521,1724709045887,-166.3,0.0001079,2]
[336137523,1724709045898,-166.3,0.0001079,2]
[336137525,1724709045907,-166.3,0.0001079,2]
[336137527,1724709045917,-166.3,0.0001079,2]
[336137528,1724709045927,-166.3,0.0001079,2]
[336137530,1724709045936,-166.3,0.0001079,2]
[336137532,1724709045947,-166.3,0.0001079,2]
[336137535,1724709045956,-166.3,0.0001079,2]
[336137536,1724709045966,-166.3,0.0001079,2]
[336137538,1724709045976,-166.3,0.0001079,2]
[336137540,1724709045985,-347.36013889,0.00010799,2]
[336137542,1724709045994,-394449.68481021,0.000108,2]
[336137545,1724709046010,-320.98,0.000108,2]
[336137547,1724709046025,-120613.61172914,0.000108,2]
[336137549,1724709046037,-4778.87436627,0.000108,2]
[336138592,1724709101618,393.38,8.219e-05,2]
[336138593,1724709207100,296.0,9.953e-05,2]
[336138594,1724709212755,7907.65,9.953e-05,2]
[336138602,1724709246851,1000.0,9.943e-05,2]
[336138603,1724709266589,216.59,9.943e-05,2]
[336138604,1724709309904,23900.0,9.942e-05,2]
[336138605,1724709441620,150.0,0.0001,2]
[336138606,1724709488516,1500.0,0.0001,2]
[336138609,1724709602899,150.0,0.0001,2]
[336138610,1724709603110,150.0,0.0001,2]
[336138611,1724709603283,151.46325954,0.0001,2]
[336138612,1724709606504,250.0,9.926e-05,2]
[336138613,1724709647703,386.75,8.219e-05,2]
[336138614,1724709687024,156.77939307,9.997e-05,2]
[336138615,1724709740407,155.0,0.00010009,2]
[336138616,1724709753416,155.0,0.00010009,2]
[336138617,1724709762365,395.19865045,0.00010009,2]
[336138618,1724709764429,186.49413753,0.00010009,2]
[336138619,1724709817063,166.76578094,0.00010009,2]
[336138620,1724709838399,152.89,9.905e-05,2]
[336138621,1724709905715,155.0,0.00010009,2]
[336138622,1724709914804,150.0,9.715e-05,2]
[336138624,1724710007902,1000.0,9.902e-05,2]
[336138625,1724710026772,200.0,9.852e-05,2]
[336138629,1724710049513,3272.62,9.961e-05,2]
[336138639,1724710153625,181.69711588,9.911e-05,2]
[336138657,1724710214740,306.54258702,0.00010009,2]
[336138663,1724710232154,-155.0,0.00010026,2]
[336138664,1724710232164,-220.01972607,0.00010026,2]
[336138665,1724710232173,-207.46677344,0.00010026,2]
[336138666,1724710232182,-330.34282033,0.00010026,2]
[336138667,1724710232192,-431.37387087,0.00010026,2]
[336138668,1724710232202,-17.24957166,0.00010097,2]
[336138680,1724710232406,-201.74415358,0.00010097,2]
[336138681,1724710232416,-460.4481801,0.00010097,2]
[336138682,1724710232426,-379.8986793,0.00010097,2]
[336138683,1724710232435,-156.07673702,0.00010471,2]
[336138684,1724710232446,-230.67326298,0.00010471,2]
[336138685,1724710232601,-69.31673702,0.00010471,2]
[336138690,1724710238069,-477.83672792,0.00010471,2]
[336138691,1724710238079,-155.0,0.00010505,2]
[336138692,1724710238090,-300.0,0.00010689,2]
[336138693,1724710238100,-171.31111,0.0001069,2]
[336138694,1724710238110,-150.0,0.00010699,2]
[336138695,1724710238119,-1865.8709135,0.000107,2]
[336138696,1724710238293,-569.78816292,0.000107,2]
[336138697,1724710238304,-306.53181999,0.000107,2]
[336138698,1724710238390,-6626.70319834,0.000107,2]
[336138699,1724710238402,-1005.0644544,0.000107,2]
[336138857,1724710240043,-1130.54686907,0.000107,2]
[336138860,1724710240054,-1596.3,0.000107,2]
[336138863,1724710240065,-6368.70597903,0.000107,2]
[336138866,1724710240076,-500.0,0.000107,2]
[336138868,1724710240087,-1244.6844767,0.000107,2]
[336138874,1724710240132,-635.093,0.000107,2]
[336138876,1724710240143,-795.53578029,0.000107,2]
[336138878,1724710240154,-4626.59156538,0.000107,2]
[336138885,1724710240208,-4153.22598848,0.000107,2]
[336138887,1724710240219,-12166.95600629,0.000107,2]
[336138889,1724710240231,-384.522,0.000107,2]
[336138891,1724710240241,-330.38500001,0.000107,2]
[336138893,1724710240252,-8940.94712161,0.000107,2]
[336138895,1724710240263,-35327.79756399,0.000107,2]
[336138897,1724710240272,-164.03405319,0.000107,2]
[336138899,1724710240285,-900.4459,0.000107,2]
[336138901,1724710240294,-1000.0,0.000107,2]
[336138903,1724710240303,-150.77,0.0001079,2]
[336138905,1724710240312,-150.77,0.0001079,2]
[336138907,1724710240322,-150.77,0.0001079,2]
[336138909,1724710240332,-150.77,0.0001079,2]
[336138911,1724710240341,-150.77,0.0001079,2]
[336138913,1724710240351,-150.77,0.0001079,2]
[336138915,1724710240361,-150.77,0.0001079,2]
[336138917,1724710240371,-150.77,0.0001079,2]
[336138919,1724710240379,-150.77,0.0001079,2]
[336138921,1724710240389,-150.77,0.0001079,2]
[336138923,1724710240398,-150.77,0.0001079,2]
[336138925,1724710240407,-150.77,0.0001079,2]
[336138927,1724710240416,-150.77,0.0001079,2]
[336138929,1724710240426,-150.77,0.0001079,2]
[336138931,1724710240435,-150.0,0.00010795,2]
[336138933,1724710240444,-150.99,0.00010797,2]
[336138935,1724710240453,-3079.78951041,0.00010797,2]
[336138937,1724710240463,-1298.91557238,0.00010799,3]
[336138938,1724710240473,-1298.91557239,0.00010799,3]
[336138940,1724710240482,-188.19,0.00010799,2]
[336138942,1724710240491,-1288.98,0.00010799,2]
[336138944,1724710240501,-150.99,0.00010799,2]
[336138946,1724710240510,-360.2,0.00010799,2]
[336138948,1724710240520,-296.37738313,0.00010799,2]
[336138950,1724710240529,-838.0,0.000108,2]
[336138952,1724710240538,-51150.19553124,0.000108,2]
[336138954,1724710240550,-59972.97796053,0.000108,2]
[336138956,1724710240561,-12736.54400959,0.000108,2]
[336138958,1724710240572,-807.73443717,0.000108,2]
[336138961,1724710240586,-10914.61157482,0.000108,2]
[336138963,1724710240597,-1840.0,0.000108,2]
[336138966,1724710240616,-2336.89922027,0.000108,2]
[336138968,1724710240627,-1047.97004866,0.000108,2]
[336138970,1724710240638,-382149.68988452,0.000108,2]
[336138971,1724710240649,-1246.89580246,0.000108,2]
[336138972,1724710240674,-1355.58490402,0.000108,2]
[336138973,1724710240685,-1581.58568819,0.000108,2]
[336138974,1724710240696,-764403.16784832,0.000108,2]
[336139192,1724710243022,-338.33948636,0.000107,2]
[336139194,1724710243034,-260.34901364,0.000107,2]
[336139196,1724710243043,-45.32980368,0.000108,2]
[336139199,1724710243055,-14038.9224587,0.000108,2]
[336139201,1724710243066,-661.3131406,0.000108,2]
[336139203,1724710243077,-6679.72932,0.000108,2]
[336139205,1724710243088,-463.3999995,0.000108,2]
[336139207,1724710243099,-3265.01060924,0.000108,2]
[336139209,1724710243110,-6644.55524363,0.000108,2]
[336139211,1724710243121,-521.31163644,0.000108,2]
[336139214,1724710243135,-684.93719709,0.000108,2]
[336139216,1724710243147,-1516.6,0.000108,2]
[336139218,1724710243158,-7440.45079688,0.000108,2]
[336139220,1724710243170,-316.615,0.000108,2]
[336139223,1724710243182,-444.24779552,0.000108,2]
[336139225,1724710243193,-5503.0,0.000108,2]
[336139227,1724710243205,-38710.46975587,0.000108,2]
[336139229,1724710243215,-2982.26387727,0.000108,2]
[336139231,1724710243228,-571.571,0.000108,2]
[336139234,1724710243239,-674.16794245,0.000108,2]
[336139236,1724710243251,-529.685291,0.000108,2]
[336139246,1724710243350,-311.7686698,0.000108,2]
[336139248,1724710243365,-484.33001,0.000108,2]
[336139250,1724710243377,-697.23822464,0.000108,2]
[336139252,1724710243388,-340.68338463,0.000108,2]
[336139254,1724710243399,-993.12736041,0.000108,2]
[336139257,1724710243410,-7764.0017081,0.000108,2]
[336139259,1724710243430,-1082.91734936,0.000108,2]
[336139262,1724710243441,-10657.64146005,0.000108,2]
[336139264,1724710243453,-10992.66936184,0.000108,2]
[336139266,1724710243464,-2765.50224004,0.000108,2]
[336139268,1724710243477,-754.9399989,0.000108,2]
[336139270,1724710243487,-1000.0,0.000108,2]
[336139272,1724710243499,-2447.60779868,0.000108,2]
[336139274,1724710243510,-2934.77971038,0.000108,2]
[336139276,1724710243521,-529.46944493,0.000108,2]
[336139504,1724710245965,-660.54195458,0.000108,2]
[336139507,1724710245976,-4417.52516995,0.000108,2]
[336139509,1724710245988,-10401.00682633,0.000108,2]
[336139511,1724710245998,-1417.56443875,0.000108,2]
[336139513,1724710246009,-1006.8,0.000108,2]
[336139518,1724710246052,-2735.70533876,0.000108,2]
[336139520,1724710246063,-1140.98566482,0.000108,2]
[336139523,1724710246074,-1326.68,0.000108,2]
[336139525,1724710246090,-30239.88879568,0.000108,2]
[336139531,1724710246140,-568.72966292,0.000108,2]
[336139534,1724710246151,-832.13,0.000108,2]
[336139536,1724710246162,-508.07079341,0.000108,2]
[336139542,1724710246217,-310.75725806,0.000108,2]
[336139544,1724710246228,-1529.47956354,0.000108,2]
[336139546,1724710246241,-528.61594051,0.000108,2]
[336139549,1724710246253,-907.5,0.000108,2]
[336139551,1724710246263,-3614.48,0.000108,2]
[336140799,1724710259135,700.0,0.0001,3]
[336140984,1724710261060,250.0,9.973e-05,2]
[336141144,1724710263051,361.27,8.219e-05,2]
[336142628,1724710348205,170.07,9.884e-05,2]
[336142629,1724710374853,3252.98670935,9.962e-05,2]
[336142630,1724710413497,10819.84,9.876e-05,2]
[336142636,1724710567011,200.0,9.843e-05,2]
[336142637,1724710666669,1050.0,0.0001,2]
[336142638,1724710828915,439.58612824,0.00010009,2]
[336142641,1724711066143,270.81,9.826e-05,2]
[336142642,1724711068306,840.0,9.826e-05,2]
[336142643,1724711069201,264.6397361,0.00010009,2]
[336142644,1724711105698,373.96,8.219e-05,2]
[336142652,1724711219432,440.08291615,9.962e-05,2]
[336142653,1724711220847,1806.145454,0.0001,2]
[336142654,1724711230650,700.0,0.0001,3]
[336142724,1724711391729,155.18840047,0.00010009,2]
[336142727,1724711395000,919.78,9.759e-05,2]
[336142744,1724711432100,-155.0,0.00010097,2]
[336142745,1724711432110,-1400.0,0.000101,3]
[336142747,1724711432119,-2100.0,0.000102,3]
[336142749,1724711432128,-2800.0,0.000103,3]
[336142751,1724711432137,-324.24499998,0.00010383,2]
[336142752,1724711432147,-300.0,0.00010399,2]
[336142753,1724711432157,-150.0,0.000104,2]
[336142754,1724711432167,-150.0,0.000104,2]
[336142755,1724711432178,-3500.0,0.000104,3]
[336142756,1724711432188,-373.96,0.00010467,2]
[336142757,1724711432197,-293.68354989,0.00010471,2]
[336142758,1724711432206,-687.7799413,0.00010471,2]
[336142759,1724711432215,-426.98,0.000105,2]
[336142760,1724711432225,-357.01,0.000105,2]
[336142761,1724711432234,-150.0,0.000105,2]
[336142762,1724711432245,-150.0,0.000105,2]
[336142763,1724711432257,-150.0,0.000105,2]
[336142764,1724711432266,-791.05,0.000105,2]
[336142765,1724711432277,-700.0,0.000105,3]
[336142766,1724711432286,-196.95172,0.00010505,2]
[336142767,1724711432296,-330.24732685,0.00010566,2]
[336142768,1724711432305,-431.91578682,0.00010566,2]
[336142769,1724711432314,-700.0,0.000106,3]
[336142770,1724711432323,-192.98983,0.0001069,2]
[336142771,1724711432333,-700.0,0.000107,3]
[336142772,1724711432341,-200.0,0.00010773,2]
[336142773,1724711432350,-174.53379932,0.00010773,2]
[336142774,1724711432360,-9788.58555932,0.0001078,2]
[336142775,1724711432369,-150.75,0.0001079,2]
[336142776,1724711432378,-150.75,0.0001079,2]
[336142777,1724711432387,-150.75,0.0001079,2]
[336142778,1724711432397,-150.75,0.0001079,2]
[336142779,1724711432409,-150.75,0.0001079,2]
[336142780,1724711432419,-1197.69592075,0.00010797,2]
[336142781,1724711432438,-150.0,0.00010798,2]
[336142782,1724711432447,-150.01,0.00010799,2]
[336142784,1724711432456,-14881.65115831,0.00010799,2]
[336142786,1724711432465,-303.00645462,0.00010799,2]
[336142788,1724711432474,-775.0,0.000108,2]
[336142790,1724711432484,-785240.40699631,0.000108,2]
[336142792,1724711432496,-200037.03382888,0.000108,2]
[336142795,1724711432507,-4259.61070056,0.000108,2]
[336142798,1724711432518,-1735.60584608,0.000108,2]